Workbook

Sheet Forside
K2: Version 1.0, beta
K3: November 2015
B6: Beregning af gødningsværdien af økologiske gødningsprodukter
B8: Med dette program kan du sammenligne den relle værdi af økologiske gødningsprodukter. I beregningerne indgår næringsstofværdien og omkostninger til indkøb, transport, lagring og udbringning.
B13: Beregningen er foretaget for: | H13: Beregningen af foretaget af:
B15: Gårdnavn | H15: Forening
B16: Landmand | H16: Konsulent | P16: Landmand | R16: Konsulent
B17: Adresse | H17: Adresse | P17: Tom? | Q17: Postnr | R17: Tom? | S17: Postnr
B18: Postnummer | E18: =IF(P18=FALSE,VLOOKUP(Q18,Postnr,2,FALSE),"") ->  | H18: Postnummer | K18: =IF(R18=FALSE,VLOOKUP(S18,Postnr,2,FALSE),"") ->  | P18: =ISBLANK(D18) -> TRUE | Q18: =VALUE(LEFT(D18,4)) ->  | R18: =ISBLANK(J18) -> TRUE | S18: =VALUE(LEFT(J18,4)) -> 
B19: E-mail | H19: E-mail
B22: Scenarienavn:

Sheet Betalingsvillighed
B2: Næringsstofpriser og næringsstofprioritering
B4: Anfør de næringsstoffer, som du er villig til at betale for, og hvad du i givet fald maksimalt er villig til at betale for dem. Som udgangspunkt er der anført næringsstofpriser i konventionel handelsgødning. Sæt ü ved de næringsstoffer, som du har behov for at købe og anfør den pris, du er villig til at betale.
G8: Næringsstof
C9: Næringsstof | D9: Vælg | E9: Pris, | F9: Vælg | G9: prioriteret,
E10: kr. pr. kg | G10: Kg pr. ha | Q10: Indregnet pris | T10: Max. Mængde
C11: Kvælstof, udnyttet | E11: =Forudsætninger!$C6 -> 8 | G11: 100 | N11: =Forudsætninger!$C6 -> 8 | P11: TRUE | Q11: =IF(P11=TRUE,E11,0) -> 8 | S11: TRUE | T11: =IF(S11=TRUE,G11,0) -> 100
C12: Fosfor | E12: =Forudsætninger!$C7 -> 10 | G12: 25 | N12: =Forudsætninger!$C7 -> 10 | P12: FALSE | Q12: =IF(P12=TRUE,E12,0) -> 0 | S12: FALSE | T12: =IF(S12=TRUE,G12,0) -> 0
C13: Kalium | E13: =Forudsætninger!$C8 -> 6 | G13: 50 | N13: =Forudsætninger!$C8 -> 6 | P13: TRUE | Q13: 6 | S13: FALSE | T13: =IF(S13=TRUE,G13,0) -> 0
C14: Svovl | E14: =Forudsætninger!$C9 -> 2 | G14: - | N14: =Forudsætninger!$C9 -> 2 | P14: TRUE | Q14: 2
C15: Magnesium | E15: =Forudsætninger!$C10 -> 4 | G15: - | N15: =Forudsætninger!$C10 -> 4 | P15: FALSE | Q15: 0
S16: =IF(S11=TRUE,CONCATENATE(T11," kg udn. N/ha"),IF(S12=TRUE,CONCATENATE(T12," kg P/ha"),IF(S13=TRUE,CONCATENATE(T13," kg K/ha")))) -> 100 kg udn. N/ha

Sheet Gødningsprodukter
B2: Sammenligning af gødningsprodukter
B4: Vælg de gødningstyper, du ønsker at sammenligne. Tag stilling til indkøbspris og til om du skal betale for transport og lagring.
B5: Tilret priser og indhold af næringsstoffer til de specifikke produkter som du kan få fat i.
M8: Transport | Q8: Lagring | S8: Udbringning | U8: Omkost. | V8: Værdi ÷ | W8: Ved: | Y8: Medfølgende næringsstoffer,
B9: Gødningsprodukt | D9: Næringsstofindhold, kg pr. ton | J9: N-udn. | K9: Værdi, | L9: Indkøb, | M9: Betal- | N9: Transport- | O9: Afstand, | P9: Omkost. | Q9: Betal- | S9: Nedfæld- | T9: Omkost. | U9: i alt | V9: omkost. | W9: =Betalingsvillighed!S16 -> 100 kg udn. N/ha | Y9: kg pr. ha | AD9: Transport- | AE9: Tilstand | AG9: Betaling for: | AI9: Nedfæld.- | AJ9: Tillæg for | AN9: Næringsstofindhold, kg pr. ton | AT9: N-udn. | AU9: Værdi, | AV9: Indkøb,
C10: Nr. | D10: Tot-N | E10: NH4-N | F10: P | G10: K | H10: S | I10: Mg | J10: pct. | K10: kr./ton | L10: kr./ton | M10: ing | N10: form | O10: km | P10: kr./ton | Q10: ing | R10: kr./ton | S10: ning | T10: kr./ton | U10: kr./ton | V10: kr./ton | W10: Ton/ha | X10: Kr./ha | Y10: Udn. N | Z10: P | AA10: K | AB10: S | AC10: Mg | AD10: form | AG10: Transport | AH10: Lagring | AI10: ning | AJ10: nedfældning | AN10: Tot-N | AO10: NH4-N | AP10: P | AQ10: K | AR10: S | AS10: Mg | AT10: pct. | AU10: kr./ton | AV10: kr./ton
C11: 10 | D11: =IF($C11>1,INDEX(Produkttabel,C11,4),"") -> 5 | E11: =IF($C11>1,INDEX(Produkttabel,C11,5),"") -> 0 | F11: =IF($C11>1,INDEX(Produkttabel,C11,6),"") -> 1.75 | G11: =IF($C11>1,INDEX(Produkttabel,C11,7),"") -> 11.25 | H11: =IF($C11>1,INDEX(Produkttabel,C11,8),"") -> 15 | I11: =IF($C11>1,INDEX(Produkttabel,$C11,9),"") -> 0 | J11: =IF($C11>1,INDEX(Produkttabel,$C11,10),"") -> 60 | K11: =IF(C11>1,D11*J11%*Npris+F11*Ppris+G11*Kpris+H11*Spris+I11*Mgpris,"") -> 121.5 | L11: =IF($C11>1,INDEX(Produkttabel,$C11,12),"") -> 38 | O11: 5 | P11: =IF(C11>1,IF(AND(AG11=TRUE,AD11<>""),((VLOOKUP(AF11,Transportomkostninger,3)/60+((O11*2)/VLOOKUP(AF11,Transportomkostninger,4)))*VLOOKUP(AF11,Transportomkostninger,2)/VLOOKUP(AF11,Transportomkostninger,5)),0),"") -> 40 | R11: =IF(C11>1,IF(AH11=TRUE,IF($C11>1,INDEX(Produkttabel,C11,13),""),0),"") -> 0 | T11: =IF($C11>1,((INDEX(Produkttabel,$C11,14)+AJ11)),"") -> 30 | U11: =IF(C11>1,L11+P11+R11+T11,"") -> 108 | V11: =IF(C11>1,K11-U11,"") -> 13.5 | W11: =IF(C11>1,(IF(Betalingsvillighed!$S$11=TRUE,Betalingsvillighed!$T$11/(Gødningsprodukter!D11*J11%),IF(Betalingsvillighed!$S$12=TRUE,Betalingsvillighed!$T$12/Gødningsprodukter!F11,IF(Betalingsvillighed!$S$13=TRUE,Betalingsvillighed!$T$13/Gødningsprodukter!G11)))),"") -> 33.33333333 | X11: =IF(C11>1,W11*V11,"") -> 450 | Y11: =IF(C11>1,W11*J11%*D11,"") -> 100 | Z11: =IF(C11>1,W11*F11,"") -> 58.33333333 | AA11: =IF(C11>1,W11*G11,"") -> 375 | AB11: =IF(C11>1,W11*H11,"") -> 500 | AC11: =IF(C11>1,W11*I11,"") -> 0 | AD11: Traktor | AE11: =IF($C11>1,INDEX(Produkttabel,$C11,11),"") -> Fast | AF11: =CONCATENATE(AD11,AE11) -> TraktorFast | AG11: TRUE | AH11: FALSE | AI11: TRUE | AJ11: =IF(AI11=TRUE,TillægForNedfældning,0) -> 5 | AN11: =IF($C11>1,INDEX(Produkttabel,AM11,4),"") -> 4.4 | AO11: =IF($C11>1,INDEX(Produkttabel,AM11,5),"") -> 2.6 | AP11: =IF($C11>1,INDEX(Produkttabel,AM11,6),"") -> 0.7 | AQ11: =IF($C11>1,INDEX(Produkttabel,AM11,7),"") -> 3.2 | AR11: =IF($C11>1,INDEX(Produkttabel,AM11,8),"") -> 0 | AS11: =IF($C11>1,INDEX(Produkttabel,$C11,9),"") -> 0 | AT11: =IF($C11>1,INDEX(Produkttabel,$C11,10),"") -> 60 | AU11: =IF(AM11>1,AN11*AT11%*Npris+AP11*Ppris+AQ11*Kpris+AR11*Spris+AS11*Mgpris,"") ->  | AV11: =IF($C11>1,INDEX(Produkttabel,$C11,12),"") -> 38
C12: 8 | D12: 8.6 | E12: 3.8 | F12: 3.2 | G12: 1.7 | H12: 0 | I12: 0 | J12: 70 | K12: 58.36 | L12: 0 | O12: 10 | P12: 37.8 | R12: 0 | T12: 25 | U12: 62.8 | V12: -4.44 | W12: =IF(C12>1,(IF(Betalingsvillighed!$S$11=TRUE,Betalingsvillighed!$T$11/(Gødningsprodukter!D12*J12%),IF(Betalingsvillighed!$S$12=TRUE,Betalingsvillighed!$T$12/Gødningsprodukter!F12,IF(Betalingsvillighed!$S$13=TRUE,Betalingsvillighed!$T$13/Gødningsprodukter!G12)))),"") -> 16.61129568 | X12: -73.75415282 | Y12: 100 | Z12: 53.15614618 | AA12: 28.23920266 | AB12: 0 | AC12: 0 | AD12: Traktor | AE12: Flydende | AF12: =CONCATENATE(AD12,AE12) -> TraktorFlydende | AG12: TRUE | AH12: FALSE | AI12: TRUE | AJ12: 5 | AN12: 3.9 | AO12: 2.9 | AP12: 1 | AQ12: 1.7 | AR12: 0 | AS12: 0 | AT12: 70 | AV12: 0
C13: 2 | D13: 4.4 | E13: 2.6 | F13: 0.7 | G13: 3.2 | H13: 0 | I13: 0 | J13: 70 | K13: 43.84 | L13: 0 | O13: 2 | P13: 9 | R13: 0 | T13: 25 | U13: 34 | V13: 9.84 | W13: =IF(C13>1,(IF(Betalingsvillighed!$S$11=TRUE,Betalingsvillighed!$T$11/(Gødningsprodukter!D13*J13%),IF(Betalingsvillighed!$S$12=TRUE,Betalingsvillighed!$T$12/Gødningsprodukter!F13,IF(Betalingsvillighed!$S$13=TRUE,Betalingsvillighed!$T$13/Gødningsprodukter!G13)))),"") -> 32.46753247 | X13: 319.4805195 | Y13: 100 | Z13: 22.72727273 | AA13: 103.8961039 | AB13: 0 | AC13: 0 | AD13: Traktor | AE13: Flydende | AF13: =CONCATENATE(AD13,AE13) -> TraktorFlydende | AG13: TRUE | AH13: FALSE | AI13: TRUE | AJ13: 5 | AN13: 4.5 | AO13: 3.4 | AP13: 1.2 | AQ13: 2.6 | AR13: 0 | AS13: 0 | AT13: 70 | AV13: 0
C14: 10 | D14: 5 | E14: 0 | F14: 1.75 | G14: 11.25 | H14: 15 | I14: 0 | J14: 60 | K14: 121.5 | L14: 38 | O14: 10 | P14: 0 | R14: 0 | T14: 25 | U14: 63 | V14: 58.5 | W14: =IF(C14>1,(IF(Betalingsvillighed!$S$11=TRUE,Betalingsvillighed!$T$11/(Gødningsprodukter!D14*J14%),IF(Betalingsvillighed!$S$12=TRUE,Betalingsvillighed!$T$12/Gødningsprodukter!F14,IF(Betalingsvillighed!$S$13=TRUE,Betalingsvillighed!$T$13/Gødningsprodukter!G14)))),"") -> 33.33333333 | X14: 1950 | Y14: 100 | Z14: 58.33333333 | AA14: 375 | AB14: 500 | AC14: 0 | AE14: Fast | AF14: =CONCATENATE(AD14,AE14) -> Fast | AG14: FALSE | AH14: FALSE | AI14: FALSE | AJ14: 0 | AN14: 18.5 | AO14: 6.5 | AP14: 6 | AQ14: 9.7 | AR14: 0 | AS14: 0 | AT14: 60 | AV14: 38
C15: 1 | W15: =IF(C15>1,(IF(Betalingsvillighed!$S$11=TRUE,Betalingsvillighed!$T$11/(Gødningsprodukter!D15*J15%),IF(Betalingsvillighed!$S$12=TRUE,Betalingsvillighed!$T$12/Gødningsprodukter!F15,IF(Betalingsvillighed!$S$13=TRUE,Betalingsvillighed!$T$13/Gødningsprodukter!G15)))),"") ->  | AF15: =CONCATENATE(AD15,AE15) ->  | AG15: FALSE | AH15: FALSE | AI15: FALSE | AJ15: 0
C16: 1 | W16: =IF(C16>1,(IF(Betalingsvillighed!$S$11=TRUE,Betalingsvillighed!$T$11/(Gødningsprodukter!D16*J16%),IF(Betalingsvillighed!$S$12=TRUE,Betalingsvillighed!$T$12/Gødningsprodukter!F16,IF(Betalingsvillighed!$S$13=TRUE,Betalingsvillighed!$T$13/Gødningsprodukter!G16)))),"") ->  | AG16: FALSE | AH16: FALSE | AI16: FALSE | AJ16: 0
C17: 1 | W17: =IF(C17>1,(IF(Betalingsvillighed!$S$11=TRUE,Betalingsvillighed!$T$11/(Gødningsprodukter!D17*J17%),IF(Betalingsvillighed!$S$12=TRUE,Betalingsvillighed!$T$12/Gødningsprodukter!F17,IF(Betalingsvillighed!$S$13=TRUE,Betalingsvillighed!$T$13/Gødningsprodukter!G17)))),"") ->  | AG17: FALSE | AH17: FALSE | AI17: FALSE | AJ17: 0
C18: 1 | W18: =IF(C18>1,(IF(Betalingsvillighed!$S$11=TRUE,Betalingsvillighed!$T$11/(Gødningsprodukter!D18*J18%),IF(Betalingsvillighed!$S$12=TRUE,Betalingsvillighed!$T$12/Gødningsprodukter!F18,IF(Betalingsvillighed!$S$13=TRUE,Betalingsvillighed!$T$13/Gødningsprodukter!G18)))),"") ->  | AG18: FALSE | AH18: FALSE | AI18: FALSE | AJ18: 0
C19: 1 | W19: =IF(C19>1,(IF(Betalingsvillighed!$S$11=TRUE,Betalingsvillighed!$T$11/(Gødningsprodukter!D19*J19%),IF(Betalingsvillighed!$S$12=TRUE,Betalingsvillighed!$T$12/Gødningsprodukter!F19,IF(Betalingsvillighed!$S$13=TRUE,Betalingsvillighed!$T$13/Gødningsprodukter!G19)))),"") ->  | AF19: =CONCATENATE(AD19,AE19) ->  | AG19: FALSE | AH19: FALSE | AI19: FALSE | AJ19: 0
C20: 1 | W20: =IF(C20>1,(IF(Betalingsvillighed!$S$11=TRUE,Betalingsvillighed!$T$11/(Gødningsprodukter!D20*J20%),IF(Betalingsvillighed!$S$12=TRUE,Betalingsvillighed!$T$12/Gødningsprodukter!F20,IF(Betalingsvillighed!$S$13=TRUE,Betalingsvillighed!$T$13/Gødningsprodukter!G20)))),"") ->  | AG20: FALSE | AH20: FALSE | AI20: FALSE | AJ20: 0
D21: =IF($C21>1,INDEX(Produkttabel,C21,4),"") ->  | F21: =IF($C21>1,INDEX(Produkttabel,D21,5),"") ->  | G21: =IF($C21>1,INDEX(Produkttabel,F21,6),"") ->  | H21: =IF($C21>1,INDEX(Produkttabel,G21,7),"") ->  | I21: =IF($C21>1,INDEX(Produkttabel,H21,8),"") -> 

Sheet Opslagstabeller
B2: Økologiske gødningsprodukter
E7: Næringsstofindhold, kg pr. ton | K7: N-udn. | M7: Indkøb, | N7: Lagring, | O7: Udbring-
C8: Nr. | D8: Oprindelse | E8: Total-N | F8: NH4-N | G8: Fosfor | H8: Kalium | I8: Svovl | J8: Magne-sium | K8: pct. | L8: Produkt-form | M8: kr./ton | N8: kr. pr. ton | O8: ning, kr. pr. ton
B9: 1 | C9: 2 | D9: 3 | E9: 4 | F9: 5 | G9: 6 | H9: 7 | I9: 8 | J9: 9 | K9: 10 | L9: 11 | M9: 12 | N9: 13 | O9: 14 | P9: 15
B10: Vælg produkt | C10: 1
B11: Kvæggylle | C11: 2 | E11: 4.4 | F11: 2.6 | G11: 0.7 | H11: 3.2 | K11: 70 | L11: Flydende | N11: 12 | O11: 20 | T11: Kvæggylle | U11: 2 | W11: 4.4 | X11: 2.6 | Y11: 0.7 | Z11: 3.2 | AC11: 70 | AD11: Flydende | AF11: 12 | AG11: 20
B12: Sogylle | C12: 3 | E12: 3.9 | F12: 2.9 | G12: 1 | H12: 1.7 | K12: 75 | L12: Flydende | N12: 12 | O12: 20 | T12: Sogylle | U12: 3 | W12: 3.9 | X12: 2.9 | Y12: 1 | Z12: 1.7 | AC12: 75 | AD12: Flydende | AF12: 12 | AG12: 20
B13: Slagtesvinegylle | C13: 4 | E13: 4.5 | F13: 3.4 | G13: 1.2 | H13: 2.6 | K13: 75 | L13: Flydende | N13: 12 | O13: 20 | T13: Slagtesvinegylle | U13: 4 | W13: 4.5 | X13: 3.4 | Y13: 1.2 | Z13: 2.6 | AC13: 75 | AD13: Flydende | AF13: 12 | AG13: 20
B14: Fast gødning, høns. | C14: 5 | E14: 18.5 | F14: 6.5 | G14: 6 | H14: 9.7 | K14: 65 | L14: Fast | N14: 20 | O14: 25 | T14: Fast gødning, høns. | U14: 5 | W14: 18.5 | X14: 6.5 | Y14: 6 | Z14: 9.7 | AC14: 65 | AD14: Fast | AF14: 20 | AG14: 25
B15: Dybstrøelse, slagtekyll. | C15: 6 | E15: 26.6 | F15: 8 | G15: 8.4 | H15: 17.4 | K15: 45 | L15: Fast | N15: 20 | O15: 25 | T15: Dybstrøelse, slagtekyll. | U15: 6 | W15: 26.6 | X15: 8 | Y15: 8.4 | Z15: 17.4 | AC15: 45 | AD15: Fast | AF15: 20 | AG15: 25
B16: Dybstøelse, kvæg | C16: 7 | E16: 7.5 | F16: 1.5 | G16: 1.1 | H16: 8 | K16: 45 | L16: Fast | N16: 20 | O16: 25 | T16: Dybstøelse, kvæg | U16: 7 | W16: 7.5 | X16: 1.5 | Y16: 1.1 | Z16: 8 | AC16: 45 | AD16: Fast | AF16: 20 | AG16: 25
B17: Minkgylle | C17: 8 | E17: 8.6 | F17: 3.8 | G17: 3.2 | H17: 1.7 | K17: 70 | L17: Flydende | N17: 12 | O17: 20 | T17: Minkgylle | U17: 8 | W17: 8.6 | X17: 3.8 | Y17: 3.2 | Z17: 1.7 | AC17: 70 | AD17: Flydende | AF17: 12 | AG17: 20
B18: Biogrow | C18: 9 | E18: 100 | G18: 28 | H18: 10 | K18: 70 | L18: Fast | M18: 3100 | N18: 20 | O18: 25 | T18: Biogrow | U18: 9 | W18: 100 | Y18: 28 | Z18: 10 | AC18: 70 | AD18: Fast | AE18: 3100 | AF18: 20 | AG18: 25
B19: Sojamelasse | C19: 10 | E19: 5 | G19: 1.75 | H19: 11.25 | I19: 15 | K19: 60 | L19: Fast | M19: 38 | N19: 20 | O19: 25 | T19: Sojamelasse | U19: 10 | W19: 5 | Y19: 1.75 | Z19: 11.25 | AA19: 5 | AC19: 60 | AD19: Fast | AE19: 38 | AF19: 20 | AG19: 25
B20: Biovækstkompost | C20: 11 | E20: 15.3 | F20: 1.8 | G20: 4.7 | H20: 7.7 | I20: 2.3 | J20: 0.9 | K20: 20 | L20: Fast | M20: 0 | N20: 20 | O20: 25 | T20: Biovækstkompost | U20: 11 | W20: 15.3 | X20: 1.8 | Y20: 4.7 | Z20: 7.7 | AA20: 2.3 | AB20: 0.9 | AC20: 20 | AD20: Fast | AE20: 0 | AF20: 20 | AG20: 25
B21: Protamylasse | C21: 12 | E21: 12.75 | F21: 0 | G21: 2.35 | H21: 32.95 | I21: 4.3 | J21: 1.8 | K21: 50 | L21: Flydende | M21: 154 | N21: 12 | O21: 20 | T21: Protamylasse | U21: 12 | W21: 12.75 | X21: 0 | Y21: 2.35 | Z21: 32.95 | AA21: 4.3 | AB21: 1.8 | AC21: 50 | AD21: Flydende | AE21: 154 | AF21: 12 | AG21: 20
B22: Kartoffelfrugtsaft | C22: 13 | E22: 1.05 | G22: 0.22 | H22: 3.66 | I22: 1.49 | J22: 0.16 | K22: 50 | L22: Flydende | M22: 5.4 | N22: 12 | O22: 20 | T22: Kartoffelfrugtsaft | U22: 13 | W22: 1.05 | Y22: 0.22 | Z22: 3.66 | AA22: 1.49 | AB22: 0.16 | AC22: 50 | AD22: Flydende | AE22: 5.4 | AF22: 12 | AG22: 20
B23: kartoffekondensat | C23: 14 | E23: 0.85 | G23: 0.1 | H23: 1.4 | K23: 50 | L23: Flydende | M23: 0 | N23: 12 | O23: 20 | T23: kartoffekondensat | U23: 14 | W23: 0.85 | Y23: 0.1 | Z23: 1.4 | AC23: 50 | AD23: Flydende | AE23: 0 | AF23: 12 | AG23: 20
B24: Kaliumvinasse-pulver | C24: 15 | E24: 6 | G24: 0 | H24: 210 | I24: 170 | J24: 2 | K24: 50 | L24: Fast | M24: 1950 | N24: 20 | O24: 25 | T24: Kaliumvinasse-pulver | U24: 15 | W24: 6 | Y24: 0 | Z24: 210 | AA24: 170 | AB24: 2 | AC24: 50 | AD24: Fast | AE24: 1950 | AF24: 20 | AG24: 25
B25: Haveparkaffald | C25: 16 | E25: 5 | G25: 0.9 | H25: 3.5 | I25: 0.7 | J25: 1.35 | K25: 5 | L25: Fast | M25: 0 | N25: 20 | O25: 25 | T25: Haveparkaffald | U25: 16 | W25: 5 | Y25: 0.9 | Z25: 3.5 | AA25: 0.7 | AB25: 1.35 | AC25: 5 | AD25: Fast | AE25: 0 | AF25: 20 | AG25: 25
B26: Binadan 5-2-4 | C26: 17 | E26: 50 | F26: 15 | G26: 18 | H26: 38 | J26: 6.4 | K26: 70 | L26: Fast | M26: 2840 | N26: 5 | O26: 100 | T26: Binadan 5-2-4 | U26: 17 | W26: 50 | X26: 15 | Y26: 18 | Z26: 38 | AB26: 6.4 | AC26: 70 | AD26: Fast | AE26: 2840 | AF26: 5 | AG26: 100
B27: Patentkali | C27: 18 | H27: 249 | I27: 170 | J27: 60 | L27: Granulat | M27: 3400 | N27: 5 | O27: 100 | T27: Patentkali | U27: 18 | Z27: 249 | AA27: 170 | AB27: 60 | AD27: Granulat | AE27: 3400 | AF27: 5 | AG27: 100
B28: Kiserit 15 granuleret | C28: 19 | I28: 200 | J28: 151 | L28: Granulat | M28: 2250 | N28: 5 | O28: 100 | T28: Kiserit 15 granuleret | U28: 19 | AA28: 200 | AB28: 151 | AD28: Granulat | AE28: 2250 | AF28: 5 | AG28: 100
B29: Magnesia kainit | C29: 20 | G29: 91 | I29: 40 | J29: 30 | L29: Granulat | M29: 1400 | N29: 5 | O29: 100 | T29: Magnesia kainit | U29: 20 | Y29: 91 | AA29: 40 | AB29: 30 | AD29: Granulat | AE29: 1400 | AF29: 5 | AG29: 100
B30: Kaliumsulfat 41 | C30: 21 | H30: 415 | I30: 180 | L30: Granulat | M30: 4550 | N30: 20 | O30: 25 | T30: Kaliumsulfat 41 | U30: 21 | Z30: 415 | AA30: 180 | AD30: Granulat | AE30: 4550 | AF30: 20 | AG30: 25
B31: Egen type 1 | C31: 22 | T31: Egen type 1 | U31: 22
B32: Egen type 2 | C32: 23 | T32: Egen type 2 | U32: 23
B33: Egen type 3 | C33: 24 | T33: Egen type 3 | U33: 24
B34: Egen type 4 | C34: 25 | T34: Egen type 4 | U34: 25
B38: Transportform
B39: 1 | C39: 2 | D39: 3 | E39: 4 | F39: 5
B41: Traktor | C41: Traktor
B42: Lastbil | C42: Lastbil
B46: Transportomkostninger
E47: Time- | F47: Læsse/losse | G47: Hastighed | H47: Læsstr.,
E48: pris | F48: min/læs | G48: km/t | H48: ton/læs
D49: 1 | E49: 2 | F49: 3 | G49: 4 | H49: 5 | I49: 6 | J49: 7 | K49: 8 | L49: 9 | M49: 10 | N49: 11
B50: Lastbil | C50: Fast | D50: =CONCATENATE(B50,C50) -> LastbilFast | E50: =Forudsætninger!D16 -> 700 | F50: =Forudsætninger!E16 -> 10 | G50: =Forudsætninger!F16 -> 70 | H50: =Forudsætninger!G16 -> 20
B51: Lastbil | C51: Flydende | D51: LastbilFlydende | E51: =Forudsætninger!D17 -> 700 | F51: =Forudsætninger!E17 -> 4 | G51: =Forudsætninger!F17 -> 70 | H51: =Forudsætninger!G17 -> 30
B52: Lastbil | C52: Granulat | D52: LastbilGranulat | E52: =Forudsætninger!D18 -> 700 | F52: =Forudsætninger!E18 -> 20 | G52: =Forudsætninger!F18 -> 70 | H52: =Forudsætninger!G18 -> 20
B53: Traktor | C53: Fast | D53: TraktorFast | E53: =Forudsætninger!D19 -> 900 | F53: =Forudsætninger!E19 -> 10 | G53: =Forudsætninger!F19 -> 20 | H53: =Forudsætninger!G19 -> 15
B54: Traktor | C54: Flydende | D54: TraktorFlydende | E54: =Forudsætninger!D20 -> 900 | F54: =Forudsætninger!E20 -> 3 | G54: =Forudsætninger!F20 -> 20 | H54: =Forudsætninger!G20 -> 25
B55: Traktor | C55: Granulat | D55: TraktorGranulat | E55: =Forudsætninger!D21 -> 900 | F55: =Forudsætninger!E21 -> 20 | G55: =Forudsætninger!F21 -> 70 | H55: =Forudsætninger!G21 -> 20
B58: Tillæg for nedfældning
B59: Tillæg | C59: =Forudsætninger!C25 -> 5 | D59: kr. pr. ton
B64: Dokumentation:
B65: N-udnyttelses% | C65: Husdyrgødning følger normerne
C66: Øvrige er ekspertskøn

Sheet Forudsætninger
B2: Beregningsforudsætninger
B4: Næringsstofpriser | N4: SEGES-fastsatte defaultværdier
C5: Pris, kr. pr. kg
B6: Udnyttet kvælstof | C6: 8 | N6: 8
B7: Fosfor | C7: 10 | N7: 10
B8: Kalium | C8: 6 | N8: 6
B9: Svovl | C9: 2 | N9: 2
B10: Magnesium | C10: 4 | N10: 4
B13: Forudsætninger for transportomkostninger
D14: Time- | E14: Læsse/losse | F14: Hastighed | G14: Læsstr.,
B15: Transportform | C15: Produktform | D15: pris | E15: min/læs | F15: km/t | G15: ton/læs | N15: 700 | O15: 10 | P15: 70 | Q15: 20
B16: Lastbil | C16: Fast | D16: 700 | E16: 10 | F16: 70 | G16: 20 | N16: 700 | O16: 4 | P16: 70 | Q16: 30
C17: Flydende | D17: 700 | E17: 4 | F17: 70 | G17: 30 | N17: 700 | O17: 20 | P17: 70 | Q17: 20
C18: Granulat | D18: 700 | E18: 20 | F18: 70 | G18: 20 | N18: 900 | O18: 10 | P18: 20 | Q18: 15
B19: Traktor | C19: Fast | D19: 900 | E19: 10 | F19: 20 | G19: 15 | N19: 900 | O19: 3 | P19: 20 | Q19: 25
C20: Flydende | D20: 900 | E20: 3 | F20: 20 | G20: 25 | N20: 900 | O20: 20 | P20: 70 | Q20: 20
C21: Granulat | D21: 900 | E21: 20 | F21: 70 | G21: 20
B24: Tillæg for nedfældning
B25: Tillæg | C25: 5 | D25: kr. pr. ton | N25: 5

Sheet Udskrift

Sheet Postnummer
B4: 2000 | C4: Frederiksberg
B5: 2100 | C5: København Ø
B6: 2200 | C6: København N
B7: 2300 | C7: København S
B8: 2400 | C8: København NV
B9: 2450 | C9: København SV
B10: 2500 | C10: Valby
B11: 2600 | C11: Glostrup
B12: 2605 | C12: Brøndby
B13: 2610 | C13: Rødovre
B14: 2620 | C14: Albertslund
B15: 2625 | C15: Vallensbæk
B16: 2630 | C16: Taastrup
B17: 2635 | C17: Ishøj
B18: 2640 | C18: Hedehusene
B19: 2650 | C19: Hvidovre
B20: 2660 | C20: Brøndby Strand
B21: 2665 | C21: Vallensbæk Strand
B22: 2670 | C22: Greve
B23: 2680 | C23: Solrød
B24: 2690 | C24: Karlslunde
B25: 2700 | C25: Brønshøj
B26: 2720 | C26: Vanløse
B27: 2730 | C27: Herlev
B28: 2740 | C28: Skovlunde
B29: 2750 | C29: Ballerup
B30: 2760 | C30: Måløv
B31: 2765 | C31: Smørum
B32: 2770 | C32: Kastrup
B33: 2791 | C33: Dragør
B34: 2800 | C34: Kongens Lyngby
B35: 2820 | C35: Gentofte
B36: 2830 | C36: Virum
B37: 2840 | C37: Holte
B38: 2850 | C38: Nærum
B39: 2860 | C39: Søborg
B40: 2870 | C40: Dyssegård
B41: 2880 | C41: Bagsværd
B42: 2900 | C42: Hellerup
B43: 2920 | C43: Charlottenlund
B44: 2930 | C44: Klampenborg
B45: 2942 | C45: Skodsborg
B46: 2950 | C46: Vedbæk
B47: 2960 | C47: Rungsted Kyst
B48: 2970 | C48: Hørsholm
B49: 2980 | C49: Kokkedal
B50: 2990 | C50: Nivå
B51: 3000 | C51: Helsingør
B52: 3050 | C52: Humlebæk
B53: 3050 | C53: Humlebæk
B54: 3060 | C54: Espergærde
B55: 3070 | C55: Snekkersten
B56: 3080 | C56: Tikøb
B57: 3100 | C57: Hornbæk
B58: 3120 | C58: Dronningmølle
B59: 3140 | C59: Ålsgårde
B60: 3150 | C60: Hellebæk
B61: 3200 | C61: Helsinge
B62: 3210 | C62: Vejby
B63: 3220 | C63: Tisvildeleje
B64: 3230 | C64: Græsted
B65: 3250 | C65: Gilleleje
B66: 3300 | C66: Frederiksværk
B67: 3310 | C67: Ølsted
B68: 3320 | C68: Skævinge
B69: 3330 | C69: Gørløse
B70: 3360 | C70: Liseleje
B71: 3370 | C71: Melby
B72: 3390 | C72: Hundested
B73: 3400 | C73: Hillerød
B74: 3450 | C74: Allerød
B75: 3460 | C75: Birkerød
B76: 3480 | C76: Fredensborg
B77: 3490 | C77: Kvistgård
B78: 3500 | C78: Værløse
B79: 3520 | C79: Farum
B80: 3540 | C80: Lynge
B81: 3550 | C81: Slangerup
B82: 3600 | C82: Frederikssund
B83: 3630 | C83: Jægerspris
B84: 3650 | C84: Ølstykke
B85: 3660 | C85: Stenløse
B86: 3670 | C86: Veksø Sjælland
B87: 3700 | C87: Rønne
B88: 3720 | C88: Aakirkeby
B89: 3730 | C89: Neksø
B90: 3740 | C90: Svaneke
B91: 3751 | C91: Østermarie
B92: 3760 | C92: Gudhjem
B93: 3770 | C93: Allinge
B94: 3782 | C94: Klemensker
B95: 3790 | C95: Hasle
B96: 4000 | C96: Roskilde
B97: 4030 | C97: Tune
B98: 4040 | C98: Jyllinge
B99: 4050 | C99: Skibby
B100: 4060 | C100: Kirke Såby
B101: 4070 | C101: Kirke Hyllinge
B102: 4100 | C102: Ringsted
B103: 4130 | C103: Viby Sjælland
B104: 4140 | C104: Borup
B105: 4160 | C105: Herlufmagle
B106: 4171 | C106: Glumsø
B107: 4173 | C107: Fjenneslev
B108: 4174 | C108: Jystrup Midtsj
B109: 4180 | C109: Sorø
B110: 4190 | C110: Munke Bjergby
B111: 4200 | C111: Slagelse
B112: 4220 | C112: Korsør
B113: 4230 | C113: Skælskør
B114: 4241 | C114: Vemmelev
B115: 4242 | C115: Boeslunde
B116: 4243 | C116: Rude
B117: 4250 | C117: Fuglebjerg
B118: 4261 | C118: Dalmose
B119: 4262 | C119: Sandved
B120: 4270 | C120: Høng
B121: 4281 | C121: Gørlev
B122: 4291 | C122: Ruds Vedby
B123: 4293 | C123: Dianalund
B124: 4295 | C124: Stenlille
B125: 4296 | C125: Nyrup
B126: 4300 | C126: Holbæk
B127: 4320 | C127: Lejre
B128: 4330 | C128: Hvalsø
B129: 4340 | C129: Tølløse
B130: 4340 | C130: Tølløse
B131: 4350 | C131: Ugerløse
B132: 4360 | C132: Kirke Eskilstrup
B133: 4370 | C133: Store Merløse
B134: 4390 | C134: Vipperød
B135: 4400 | C135: Kalundborg
B136: 4420 | C136: Regstrup
B137: 4440 | C137: Mørkøv
B138: 4450 | C138: Jyderup
B139: 4460 | C139: Snertinge
B140: 4470 | C140: Svebølle
B141: 4480 | C141: Store Fuglede
B142: 4490 | C142: Jerslev Sjælland
B143: 4500 | C143: Nykøbing Sj
B144: 4520 | C144: Svinninge
B145: 4532 | C145: Gislinge
B146: 4534 | C146: Hørve
B147: 4540 | C147: Fårevejle
B148: 4550 | C148: Asnæs
B149: 4560 | C149: Vig
B150: 4571 | C150: Grevinge
B151: 4572 | C151: Nørre Asmindrup
B152: 4573 | C152: Højby
B153: 4581 | C153: Rørvig
B154: 4583 | C154: Sjællands Odde
B155: 4591 | C155: Føllenslev
B156: 4592 | C156: Sejerø
B157: 4593 | C157: Eskebjerg
B158: 4600 | C158: Køge
B159: 4621 | C159: Gadstrup
B160: 4622 | C160: Havdrup
B161: 4623 | C161: Lille Skensved
B162: 4632 | C162: Bjæverskov
B163: 4640 | C163: Faxe
B164: 4652 | C164: Hårlev
B165: 4653 | C165: Karise
B166: 4654 | C166: Faxe Ladeplads
B167: 4660 | C167: Store Heddinge
B168: 4671 | C168: Strøby
B169: 4672 | C169: Klippinge
B170: 4673 | C170: Rødvig Stevns
B171: 4681 | C171: Herfølge
B172: 4682 | C172: Tureby
B173: 4683 | C173: Rønnede
B174: 4684 | C174: Holmegaard
B175: 4690 | C175: Haslev
B176: 4700 | C176: Næstved
B177: 4720 | C177: Præstø
B178: 4733 | C178: Tappernøje
B179: 4735 | C179: Mern
B180: 4736 | C180: Karrebæksminde
B181: 4750 | C181: Lundby
B182: 4760 | C182: Vordingborg
B183: 4771 | C183: Kalvehave
B184: 4772 | C184: Langebæk
B185: 4773 | C185: Stensved
B186: 4780 | C186: Stege
B187: 4791 | C187: Borre
B188: 4792 | C188: Askeby
B189: 4793 | C189: Bogø By
B190: 4800 | C190: Nykøbing F
B191: 4840 | C191: Nørre Alslev
B192: 4850 | C192: Stubbekøbing
B193: 4862 | C193: Guldborg
B194: 4863 | C194: Eskilstrup
B195: 4871 | C195: Horbelev
B196: 4872 | C196: Idestrup
B197: 4873 | C197: Væggerløse
B198: 4874 | C198: Gedser
B199: 4880 | C199: Nysted
B200: 4891 | C200: Toreby L
B201: 4892 | C201: Kettinge
B202: 4894 | C202: Øster Ulslev
B203: 4895 | C203: Errindlev
... 394 more rows
